[Event "Early-Titled-Tuesday-Blitz-August-29-2023"]
[Site "Chess.com"]
[Date "2023.08.29"]
[Round "11"]
[White "C_K_G"]
[Black "DarZay"]
[Result "0-1"]
[WhiteElo "2001"]
[BlackElo "2268"]
[TimeControl "180+1"]
[EndTime "10:03:15 PDT"]
[Termination "DarZay won on time"]

1. e4 {[%clk 0:03:00.9]} 1... c5 {[%clk 0:02:59.3]} 2. Nf3 {[%clk 0:02:57.1]}
2... Nc6 {[%clk 0:02:58.1]} 3. d4 {[%clk 0:02:57.6]} 3... cxd4 {[%clk
0:02:57.8]} 4. Nxd4 {[%clk 0:02:58.5]} 4... Nf6 {[%clk 0:02:58.3]} 5. Nc3 {[%clk
0:02:58.5]} 5... d6 {[%clk 0:02:58.8]} 6. Be2 {[%clk 0:02:58.3]} 6... e5 {[%clk
0:02:58.3]} 7. Nb3 {[%clk 0:02:57.9]} 7... Be7 {[%clk 0:02:58.6]} 8. Be3 {[%clk
0:02:58]} 8... O-O {[%clk 0:02:56.6]} 9. O-O {[%clk 0:02:58]} 9... Be6 {[%clk
0:02:56.4]} 10. f4 {[%clk 0:02:57.9]} 10... exf4 {[%clk 0:02:55.4]} 11. Rxf4
{[%clk 0:02:57.8]} 11... d5 {[%clk 0:02:56]} 12. Rxf6 {[%clk 0:02:45.6]} 12...
Bxf6 {[%clk 0:02:47]} 13. exd5 {[%clk 0:02:45.6]} 13... Bxc3 {[%clk 0:02:22.8]}
14. dxc6 {[%clk 0:02:44.9]} 14... Bxb2 {[%clk 0:02:20.6]} 15. cxb7 {[%clk
0:02:44.5]} 15... Rb8 {[%clk 0:02:03.1]} 16. Rb1 {[%clk 0:02:35.9]} 16... Qf6
{[%clk 0:01:54.7]} 17. Bf3 {[%clk 0:02:29.6]} 17... Rfd8 {[%clk 0:01:53.8]} 18.
Qe2 {[%clk 0:02:21.2]} 18... Bxb3 {[%clk 0:01:47.8]} 19. cxb3 {[%clk 0:02:12]}
19... Bd4 {[%clk 0:01:47.1]} 20. Rd1 {[%clk 0:01:56]} 20... Bxe3+ {[%clk
0:01:41.8]} 21. Qxe3 {[%clk 0:01:54.4]} 21... Rxd1+ {[%clk 0:01:28.5]} 22. Bxd1
{[%clk 0:01:52.6]} 22... Qa1 {[%clk 0:01:28.5]} 23. Qd2 {[%clk 0:01:35.5]} 23...
h6 {[%clk 0:01:25.1]} 24. Kf2 {[%clk 0:01:23.4]} 24... Qf6+ {[%clk 0:01:16]} 25.
Bf3 {[%clk 0:01:20.4]} 25... Rxb7 {[%clk 0:01:16.3]} 26. h3 {[%clk 0:01:17.1]}
26... Re7 {[%clk 0:01:11.7]} 27. Qd8+ {[%clk 0:01:06.8]} 27... Kh7 {[%clk
0:01:11.4]} 28. Qd3+ {[%clk 0:01:07.1]} 28... g6 {[%clk 0:01:11.3]} 29. a4
{[%clk 0:01:03]} 29... Qb6+ {[%clk 0:01:10.7]} 30. Kf1 {[%clk 0:00:29.7]} 30...
Re3 {[%clk 0:01:09.8]} 31. Qb5 {[%clk 0:00:11]} 31... Rxb3 {[%clk 0:01:01]} 32.
Qxb6 {[%clk 0:00:08.3]} 32... Rxb6 {[%clk 0:00:56.2]} 33. Bd5 {[%clk 0:00:06.7]}
33... Ra6 {[%clk 0:00:40.4]} 34. Bb3 {[%clk 0:00:03.4]} 34... f5 {[%clk
0:00:39.2]} 35. Ke2 {[%clk 0:00:03]} 35... Kg7 {[%clk 0:00:39.7]} 36. Kd3 {[%clk
0:00:03.1]} 36... Rc6 {[%clk 0:00:39.5]} 37. Kd4 {[%clk 0:00:02.7]} 37... Kf6
{[%clk 0:00:39.6]} 0-1

[Event "Early-Titled-Tuesday-Blitz-August-29-2023"]
[Site "Chess.com"]
[Date "2023.08.29"]
[Round "11"]
[White "bazar-wokzal"]
[Black "lamomiajunior"]
[Result "0-1"]
[WhiteElo "2598"]
[BlackElo "2789"]
[TimeControl "180+1"]
[EndTime "10:03:19 PDT"]
[Termination "lamomiajunior won on time"]

1. e4 {[%clk 0:03:00.9]} 1... c5 {[%clk 0:02:59.6]} 2. c3 {[%clk 0:03:00.5]}
2... e5 {[%clk 0:02:58.2]} 3. Nf3 {[%clk 0:02:59.9]} 3... Nc6 {[%clk 0:02:58.4]}
4. Bc4 {[%clk 0:03:00.1]} 4... Nf6 {[%clk 0:02:59]} 5. Ng5 {[%clk 0:02:59.4]}
5... d5 {[%clk 0:02:59.3]} 6. exd5 {[%clk 0:02:59]} 6... Nxd5 {[%clk 0:03:00]}
7. d4 {[%clk 0:02:56.8]} 7... cxd4 {[%clk 0:02:51.8]} 8. O-O {[%clk 0:02:56.3]}
8... Be7 {[%clk 0:02:33.5]} 9. Nxf7 {[%clk 0:02:37.6]} 9... Kxf7 {[%clk
0:02:33.6]} 10. Qf3+ {[%clk 0:02:37.7]} 10... Ke6 {[%clk 0:02:34.1]} 11. Qe4
{[%clk 0:02:38.2]} 11... Na5 {[%clk 0:02:21.9]} 12. Nd2 {[%clk 0:02:15.3]} 12...
Nxc4 {[%clk 0:02:07.2]} 13. Nxc4 {[%clk 0:02:15.1]} 13... Nf6 {[%clk 0:02:08]}
14. Qxe5+ {[%clk 0:02:14.8]} 14... Kf7 {[%clk 0:02:08.8]} 15. Bg5 {[%clk
0:02:07]} 15... Be6 {[%clk 0:02:04.8]} 16. Na5 {[%clk 0:01:41.1]} 16... Qd5
{[%clk 0:01:32.1]} 17. cxd4 {[%clk 0:01:38.3]} 17... b6 {[%clk 0:01:25.8]} 18.
Nb3 {[%clk 0:01:34.9]} 18... h6 {[%clk 0:01:20.8]} 19. Bxf6 {[%clk 0:01:29.9]}
19... Bxf6 {[%clk 0:01:21.7]} 20. Qc7+ {[%clk 0:01:25.2]} 20... Qd7 {[%clk
0:01:22]} 21. Rac1 {[%clk 0:01:23.7]} 21... Rac8 {[%clk 0:01:19.4]} 22. Qf4
{[%clk 0:01:21.8]} 22... Rhf8 {[%clk 0:01:16.8]} 23. Rcd1 {[%clk 0:00:34.3]}
23... Bxb3 {[%clk 0:01:12.4]} 24. axb3 {[%clk 0:00:33.7]} 24... Qd5 {[%clk
0:01:13.1]} 25. Rd3 {[%clk 0:00:31.4]} 25... Kg8 {[%clk 0:01:12.4]} 26. h3
{[%clk 0:00:24.4]} 26... Rfe8 {[%clk 0:01:06.9]} 27. Rfd1 {[%clk 0:00:22.3]}
27... Re4 {[%clk 0:01:05]} 28. Qf3 {[%clk 0:00:21.7]} 28... Rce8 {[%clk
0:01:04.9]} 29. g3 {[%clk 0:00:16.6]} 29... Re1+ {[%clk 0:01:02]} 30. Kg2 {[%clk
0:00:14.4]} 30... Qxf3+ {[%clk 0:00:50.8]} 31. Kxf3 {[%clk 0:00:14.3]} 31...
Rxd1 {[%clk 0:00:50.9]} 32. Rxd1 {[%clk 0:00:14.7]} 32... Kf7 {[%clk 0:00:51.6]}
33. b4 {[%clk 0:00:13.7]} 33... Ke6 {[%clk 0:00:48.2]} 34. Ke4 {[%clk
0:00:11.1]} 34... Kd6+ {[%clk 0:00:48.5]} 35. Kd3 {[%clk 0:00:11.6]} 35... Rc8
{[%clk 0:00:47]} 36. b5 {[%clk 0:00:10.9]} 36... Kd5 {[%clk 0:00:45.1]} 37. Ra1
{[%clk 0:00:09.4]} 37... Rc4 {[%clk 0:00:42.4]} 38. Rxa7 {[%clk 0:00:08.4]}
38... Rxd4+ {[%clk 0:00:43.2]} 39. Ke3 {[%clk 0:00:08.6]} 39... Rb4 {[%clk
0:00:43.8]} 40. f4 {[%clk 0:00:01.7]} 40... Rb3+ {[%clk 0:00:43.5]} 41. Kf2
{[%clk 0:00:01.9]} 41... Rxb2+ {[%clk 0:00:44.2]} 42. Kf3 {[%clk 0:00:02.3]}
42... Rxb5 {[%clk 0:00:44]} 43. g4 {[%clk 0:00:02.2]} 43... Ke6 {[%clk 0:00:44]}
0-1

[Event "Early-Titled-Tuesday-Blitz-August-29-2023"]
[Site "Chess.com"]
[Date "2023.08.29"]
[Round "11"]
[White "NovozhilovSemen"]
[Black "Druid24"]
[Result "1-0"]
[WhiteElo "2563"]
[BlackElo "2651"]
[TimeControl "180+1"]
[EndTime "10:03:19 PDT"]
[Termination "NovozhilovSemen won on time"]

1. d4 {[%clk 0:03:00.9]} 1... Nf6 {[%clk 0:02:59.5]} 2. Nf3 {[%clk 0:03:01.4]}
2... g6 {[%clk 0:02:59.7]} 3. Nc3 {[%clk 0:03:01.4]} 3... Bg7 {[%clk 0:02:58.3]}
4. e4 {[%clk 0:03:00.3]} 4... d6 {[%clk 0:02:58.1]} 5. Be3 {[%clk 0:02:59.4]}
5... c6 {[%clk 0:02:52]} 6. Qd2 {[%clk 0:02:58.5]} 6... Ng4 {[%clk 0:02:49.1]}
7. Bg5 {[%clk 0:02:58.2]} 7... h6 {[%clk 0:02:48.9]} 8. Bf4 {[%clk 0:02:57.3]}
8... b5 {[%clk 0:02:44.9]} 9. h3 {[%clk 0:02:55.5]} 9... Nf6 {[%clk 0:02:44.3]}
10. Bd3 {[%clk 0:02:55.9]} 10... b4 {[%clk 0:02:36.7]} 11. Ne2 {[%clk 0:02:55]}
11... a5 {[%clk 0:02:37.3]} 12. O-O-O {[%clk 0:02:54.7]} 12... Ba6 {[%clk
0:02:35.8]} 13. Rhe1 {[%clk 0:02:51.2]} 13... Bxd3 {[%clk 0:02:34.9]} 14. Qxd3
{[%clk 0:02:52.1]} 14... O-O {[%clk 0:02:24.5]} 15. g4 {[%clk 0:02:50]} 15...
Nbd7 {[%clk 0:02:21.1]} 16. g5 {[%clk 0:02:49.1]} 16... hxg5 {[%clk 0:02:21.3]}
17. Bxg5 {[%clk 0:02:49.5]} 17... Qc7 {[%clk 0:02:01.5]} 18. h4 {[%clk
0:02:35.8]} 18... a4 {[%clk 0:01:59.9]} 19. h5 {[%clk 0:02:33.9]} 19... Nxh5
{[%clk 0:01:58.2]} 20. Bxe7 {[%clk 0:02:34]} 20... Rfe8 {[%clk 0:01:54.7]} 21.
Bg5 {[%clk 0:02:34.6]} 21... b3 {[%clk 0:01:47.1]} 22. cxb3 {[%clk 0:02:28.3]}
22... axb3 {[%clk 0:01:47.1]} 23. a3 {[%clk 0:02:28.9]} 23... c5 {[%clk
0:01:44.8]} 24. Kb1 {[%clk 0:02:20.4]} 24... cxd4 {[%clk 0:01:41.9]} 25. Nexd4
{[%clk 0:02:19.1]} 25... Nc5 {[%clk 0:01:39.9]} 26. Qc4 {[%clk 0:02:19.5]} 26...
Qb7 {[%clk 0:01:31.1]} 27. e5 {[%clk 0:02:15.5]} 27... dxe5 {[%clk 0:01:24.3]}
28. Qxc5 {[%clk 0:02:11.8]} 28... exd4 {[%clk 0:01:21.5]} 29. Nxd4 {[%clk
0:02:12]} 29... Rec8 {[%clk 0:00:57.8]} 30. Qb5 {[%clk 0:02:10.7]} 30... Qxb5
{[%clk 0:00:54.3]} 31. Nxb5 {[%clk 0:02:11.6]} 31... Rc2 {[%clk 0:00:54.7]} 32.
Nd4 {[%clk 0:02:11.4]} 32... Rxf2 {[%clk 0:00:53.4]} 33. Bc1 {[%clk 0:02:04]}
33... Nf4 {[%clk 0:00:39.2]} 34. Nxb3 {[%clk 0:02:00.8]} 34... Rb8 {[%clk
0:00:34]} 35. Ka2 {[%clk 0:01:48.2]} 35... Ne2 {[%clk 0:00:26.8]} 36. Bd2 {[%clk
0:01:39.3]} 36... f5 {[%clk 0:00:16.3]} 37. a4 {[%clk 0:01:39.3]} 37... f4
{[%clk 0:00:15.8]} 38. Rf1 {[%clk 0:01:38.7]} 38... Rg2 {[%clk 0:00:14.2]} 39.
a5 {[%clk 0:01:37.9]} 39... f3 {[%clk 0:00:10.4]} 40. Rxf3 {[%clk 0:01:34.9]}
40... Nd4 {[%clk 0:00:03.3]} 41. Nxd4 {[%clk 0:01:29.2]} 41... Bxd4 {[%clk
0:00:04.2]} 42. Rb3 {[%clk 0:01:29.7]} 42... Ra8 {[%clk 0:00:03.5]} 43. Kb1
{[%clk 0:01:19.6]} 43... Rg1 {[%clk 0:00:02.5]} 44. Rxg1 {[%clk 0:01:18.5]}
44... Bxg1 {[%clk 0:00:03.4]} 45. Rg3 {[%clk 0:01:19]} 45... Bd4 {[%clk
0:00:02.6]} 46. Rxg6+ {[%clk 0:01:19.1]} 46... Kf7 {[%clk 0:00:03.5]} 47. Rg4
{[%clk 0:01:19.2]} 47... Bc5 {[%clk 0:00:03.1]} 48. b4 {[%clk 0:01:19.4]} 48...
Bd6 {[%clk 0:00:03.5]} 49. Kc2 {[%clk 0:01:19.8]} 49... Ke6 {[%clk 0:00:03.9]}
50. Kb3 {[%clk 0:01:19.4]} 50... Kd5 {[%clk 0:00:02.8]} 51. Ka4 {[%clk
0:01:19.6]} 51... Rc8 {[%clk 0:00:02.4]} 52. Bf4 {[%clk 0:01:17.8]} 52... Be7
{[%clk 0:00:02.1]} 53. Bg5 {[%clk 0:01:16]} 53... Rg8 {[%clk 0:00:01.8]} 54. a6
{[%clk 0:01:12.4]} 54... Rxg5 {[%clk 0:00:02]} 55. Rxg5+ {[%clk 0:01:11.9]}
55... Bxg5 {[%clk 0:00:02.9]} 56. a7 {[%clk 0:01:12.7]} 1-0

[Event "Early-Titled-Tuesday-Blitz-August-29-2023"]
[Site "Chess.com"]
[Date "2023.08.29"]
[Round "11"]
[White "SAInt_666"]
[Black "LeoLV10"]
[Result "1-0"]
[WhiteElo "2669"]
[BlackElo "2492"]
[TimeControl "180+1"]
[EndTime "10:03:19 PDT"]
[Termination "SAInt_666 won by resignation"]

1. e4 {[%clk 0:02:58.1]} 1... c6 {[%clk 0:02:55.9]} 2. d4 {[%clk 0:02:57.5]}
2... d5 {[%clk 0:02:56.3]} 3. e5 {[%clk 0:02:57.9]} 3... c5 {[%clk 0:02:46.5]}
4. dxc5 {[%clk 0:02:58.8]} 4... e6 {[%clk 0:02:39.6]} 5. a3 {[%clk 0:02:58.2]}
5... Bxc5 {[%clk 0:02:38.7]} 6. Nf3 {[%clk 0:02:57.4]} 6... Ne7 {[%clk
0:02:38.6]} 7. Bd3 {[%clk 0:02:57.1]} 7... Nd7 {[%clk 0:02:35.8]} 8. O-O {[%clk
0:02:52.8]} 8... Ng6 {[%clk 0:02:35.7]} 9. Re1 {[%clk 0:02:51.8]} 9... Qc7
{[%clk 0:02:36.2]} 10. b4 {[%clk 0:02:49.7]} 10... Bb6 {[%clk 0:02:36.2]} 11.
Bb2 {[%clk 0:02:49.5]} 11... a5 {[%clk 0:02:35.6]} 12. b5 {[%clk 0:02:47.4]}
12... Nc5 {[%clk 0:02:28.1]} 13. a4 {[%clk 0:02:47.3]} 13... Nxd3 {[%clk
0:02:27.6]} 14. cxd3 {[%clk 0:02:45.3]} 14... O-O {[%clk 0:02:25]} 15. Nbd2
{[%clk 0:02:43.5]} 15... Rd8 {[%clk 0:02:22.1]} 16. Rc1 {[%clk 0:02:38.3]} 16...
Qd7 {[%clk 0:02:22.1]} 17. Nb3 {[%clk 0:02:37.3]} 17... Qe7 {[%clk 0:02:16.3]}
18. Bd4 {[%clk 0:02:36.5]} 18... Bxd4 {[%clk 0:02:05.5]} 19. Nbxd4 {[%clk
0:02:37.4]} 19... Bd7 {[%clk 0:01:58.2]} 20. Rc7 {[%clk 0:02:34.8]} 20... Rab8
{[%clk 0:01:58.4]} 21. Qd2 {[%clk 0:02:31]} 21... b6 {[%clk 0:01:54]} 22. Nc6
{[%clk 0:02:29.5]} 22... Qe8 {[%clk 0:01:28]} 23. Nxb8 {[%clk 0:02:29]} 23...
Rxb8 {[%clk 0:01:28.9]} 24. Rec1 {[%clk 0:02:23]} 24... Nf8 {[%clk 0:01:25.1]}
25. Ra7 {[%clk 0:02:15.9]} 25... h6 {[%clk 0:01:18.3]} 26. Rcc7 {[%clk
0:02:15.2]} 26... Qd8 {[%clk 0:01:18.3]} 27. Nd4 {[%clk 0:02:10]} 27... Rc8
{[%clk 0:01:17.8]} 28. Qc1 {[%clk 0:02:00.9]} 28... Rxc7 {[%clk 0:01:12.2]} 29.
Rxc7 {[%clk 0:02:00.4]} 29... Qh4 {[%clk 0:01:06.7]} 30. f4 {[%clk 0:01:53.3]}
30... f6 {[%clk 0:01:01.5]} 31. exf6 {[%clk 0:01:49.4]} 31... gxf6 {[%clk
0:01:02.4]} 32. Qe3 {[%clk 0:01:38.4]} 32... Qh5 {[%clk 0:00:48.2]} 33. Qf3
{[%clk 0:01:30.7]} 33... Qe8 {[%clk 0:00:38.8]} 34. Qg3+ {[%clk 0:01:30.4]}
34... Kh7 {[%clk 0:00:32.1]} 35. Nc6 {[%clk 0:01:26.9]} 35... Kh8 {[%clk
0:00:28.4]} 36. h3 {[%clk 0:01:26.5]} 36... Qh5 {[%clk 0:00:20.2]} 37. Nb8
{[%clk 0:01:22.7]} 37... Qd1+ {[%clk 0:00:19.9]} 38. Kh2 {[%clk 0:01:22.8]}
38... Qh5 {[%clk 0:00:20]} 39. Nxd7 {[%clk 0:01:22.1]} 39... Qf7 {[%clk
0:00:19.8]} 40. Rc8 {[%clk 0:01:10.6]} 40... Kh7 {[%clk 0:00:16.4]} 41. Nxf8+
{[%clk 0:01:09.6]} 41... Kh8 {[%clk 0:00:16.9]} 42. Nxe6+ {[%clk 0:01:07.3]}
42... Kh7 {[%clk 0:00:17.5]} 43. Nf8+ {[%clk 0:01:07.5]} 43... Kh8 {[%clk
0:00:17.9]} 44. Nd7+ {[%clk 0:01:03.1]} 44... Kh7 {[%clk 0:00:18.1]} 45. d4
{[%clk 0:01:01.1]} 45... h5 {[%clk 0:00:17.2]} 46. h4 {[%clk 0:00:59.1]} 46...
Qxd7 {[%clk 0:00:15.1]} 47. Qg8+ {[%clk 0:00:52.2]} 47... Kh6 {[%clk 0:00:15.5]}
48. Qh8+ {[%clk 0:00:51.2]} 48... Kg6 {[%clk 0:00:15.9]} 49. Qe8+ {[%clk
0:00:51.4]} 49... Qxe8 {[%clk 0:00:14.5]} 50. Rxe8 {[%clk 0:00:52.3]} 50... Kf5
{[%clk 0:00:15.2]} 51. Rb8 {[%clk 0:00:52.5]} 51... Kxf4 {[%clk 0:00:16.1]} 52.
Rxb6 {[%clk 0:00:53.1]} 52... Ke4 {[%clk 0:00:17]} 53. Rxf6 {[%clk 0:00:53.3]}
53... Kxd4 {[%clk 0:00:17.9]} 54. b6 {[%clk 0:00:53.8]} 54... Kc5 {[%clk
0:00:18.8]} 55. b7 {[%clk 0:00:54.3]} 55... Kb4 {[%clk 0:00:19.7]} 56. b8=Q+
{[%clk 0:00:54.6]} 56... Kxa4 {[%clk 0:00:20.6]} 57. Rf1 {[%clk 0:00:54]} 57...
Ka3 {[%clk 0:00:21.5]} 58. Rf3+ {[%clk 0:00:53.2]} 58... Ka2 {[%clk 0:00:22.4]}
1-0

[Event "Early-Titled-Tuesday-Blitz-August-29-2023"]
[Site "Chess.com"]
[Date "2023.08.29"]
[Round "11"]
[White "BlueWizzard"]
[Black "tsaruk_maks"]
[Result "1/2-1/2"]
[WhiteElo "2894"]
[BlackElo "2773"]
[TimeControl "180+1"]
[EndTime "10:03:22 PDT"]
[Termination "Game drawn by repetition"]

1. d4 {[%clk 0:03:00.9]} 1... d5 {[%clk 0:02:58.8]} 2. Bg5 {[%clk 0:02:59.7]}
2... Nf6 {[%clk 0:02:58.3]} 3. Nd2 {[%clk 0:02:59.8]} 3... h6 {[%clk 0:02:57.9]}
4. Bf4 {[%clk 0:02:59.5]} 4... c5 {[%clk 0:02:57.1]} 5. e3 {[%clk 0:02:59.4]}
5... Nc6 {[%clk 0:02:56.5]} 6. Ngf3 {[%clk 0:02:58.5]} 6... Bg4 {[%clk
0:02:56.6]} 7. c3 {[%clk 0:02:53.9]} 7... e6 {[%clk 0:02:52.6]} 8. Bb5 {[%clk
0:02:51.3]} 8... Qb6 {[%clk 0:02:51.2]} 9. Qa4 {[%clk 0:02:48.5]} 9... a6 {[%clk
0:02:20.7]} 10. Bxc6+ {[%clk 0:02:48.4]} 10... Qxc6 {[%clk 0:02:21.6]} 11. Qxc6+
{[%clk 0:02:48.7]} 11... bxc6 {[%clk 0:02:22.5]} 12. Ne5 {[%clk 0:02:49.5]}
12... Rc8 {[%clk 0:02:16.2]} 13. Nxg4 {[%clk 0:02:37.1]} 13... Nxg4 {[%clk
0:02:17.1]} 14. Nb3 {[%clk 0:02:37.7]} 14... c4 {[%clk 0:02:04.5]} 15. Na5
{[%clk 0:02:23.2]} 15... c5 {[%clk 0:02:04.4]} 16. O-O {[%clk 0:02:22]} 16... g5
{[%clk 0:02:00]} 17. Bg3 {[%clk 0:02:21.4]} 17... h5 {[%clk 0:02:00.3]} 18. h3
{[%clk 0:01:59.5]} 18... Nh6 {[%clk 0:01:36.9]} 19. Be5 {[%clk 0:01:50.7]} 19...
Rg8 {[%clk 0:01:36.1]} 20. b3 {[%clk 0:01:51.2]} 20... cxd4 {[%clk 0:01:35.5]}
21. Bxd4 {[%clk 0:01:44.2]} 21... cxb3 {[%clk 0:01:33]} 22. axb3 {[%clk
0:01:43.9]} 22... Nf5 {[%clk 0:01:31.5]} 23. Be5 {[%clk 0:01:26.5]} 23... Be7
{[%clk 0:01:18.3]} 24. c4 {[%clk 0:01:26]} 24... f6 {[%clk 0:01:13.5]} 25. Bb2
{[%clk 0:01:24.9]} 25... g4 {[%clk 0:01:05.7]} 26. hxg4 {[%clk 0:01:21.6]} 26...
Rxg4 {[%clk 0:01:06.6]} 27. Rfd1 {[%clk 0:01:10.9]} 27... Kf7 {[%clk 0:01:03]}
28. Rac1 {[%clk 0:01:03.1]} 28... Rcg8 {[%clk 0:00:54.2]} 29. cxd5 {[%clk
0:00:50.9]} 29... Rxg2+ {[%clk 0:00:51.9]} 30. Kf1 {[%clk 0:00:51.5]} 30...
Nxe3+ {[%clk 0:00:21.1]} 31. fxe3 {[%clk 0:00:52.4]} 31... Rxb2 {[%clk
0:00:20.1]} 32. Rc7 {[%clk 0:00:45]} 32... exd5 {[%clk 0:00:18.3]} 33. Nc6
{[%clk 0:00:44.6]} 33... Rgg2 {[%clk 0:00:11.3]} 34. Rxe7+ {[%clk 0:00:41.2]}
34... Kg6 {[%clk 0:00:11]} 35. Nd4 {[%clk 0:00:34.7]} 35... Rgf2+ {[%clk
0:00:08.2]} 36. Kg1 {[%clk 0:00:23.3]} 36... Rg2+ {[%clk 0:00:08.8]} 37. Kf1
{[%clk 0:00:22.5]} 37... Rgf2+ {[%clk 0:00:09.4]} 38. Kg1 {[%clk 0:00:19.8]}
38... Rg2+ {[%clk 0:00:10.1]} 39. Kf1 {[%clk 0:00:19.8]} 1/2-1/2

[Event "Early-Titled-Tuesday-Blitz-August-29-2023"]
[Site "Chess.com"]
[Date "2023.08.29"]
[Round "11"]
[White "fastestmindalive"]
[Black "regular_legs"]
[Result "1-0"]
[WhiteElo "2739"]
[BlackElo "2573"]
[TimeControl "180+1"]
[EndTime "10:03:30 PDT"]
[Termination "fastestmindalive won by resignation"]

1. e4 {[%clk 0:02:59.6]} 1... c5 {[%clk 0:02:59.5]} 2. Nf3 {[%clk 0:02:58.1]}
2... e6 {[%clk 0:02:59.9]} 3. d4 {[%clk 0:02:57.8]} 3... cxd4 {[%clk 0:03:00.8]}
4. Nxd4 {[%clk 0:02:58.2]} 4... a6 {[%clk 0:03:01.7]} 5. c4 {[%clk 0:02:56.4]}
5... Qc7 {[%clk 0:03:01.5]} 6. Nc3 {[%clk 0:02:54.9]} 6... Nf6 {[%clk
0:03:02.1]} 7. Be2 {[%clk 0:02:49.4]} 7... d6 {[%clk 0:03:01.3]} 8. O-O {[%clk
0:02:48.3]} 8... Be7 {[%clk 0:03:01.8]} 9. Be3 {[%clk 0:02:48.1]} 9... O-O
{[%clk 0:03:01.2]} 10. f4 {[%clk 0:02:47]} 10... Nbd7 {[%clk 0:02:59]} 11. Rc1
{[%clk 0:02:46.2]} 11... b6 {[%clk 0:02:59.4]} 12. g4 {[%clk 0:02:45.8]} 12...
Bb7 {[%clk 0:02:48.4]} 13. Bf3 {[%clk 0:02:45]} 13... h6 {[%clk 0:02:33.9]} 14.
b3 {[%clk 0:02:17.6]} 14... Rfe8 {[%clk 0:02:28.1]} 15. g5 {[%clk 0:01:58.1]}
15... hxg5 {[%clk 0:02:20.8]} 16. fxg5 {[%clk 0:01:59]} 16... Nh7 {[%clk
0:02:20.5]} 17. g6 {[%clk 0:01:59.5]} 17... fxg6 {[%clk 0:02:20.2]} 18. Nxe6
{[%clk 0:01:59.7]} 18... Qb8 {[%clk 0:02:16.1]} 19. Nd5 {[%clk 0:01:52.2]} 19...
Bxd5 {[%clk 0:02:08.3]} 20. exd5 {[%clk 0:01:42]} 20... Ne5 {[%clk 0:02:07.9]}
21. Be4 {[%clk 0:01:42.1]} 21... b5 {[%clk 0:02:03.9]} 22. Kh1 {[%clk
0:01:33.4]} 22... bxc4 {[%clk 0:02:02.9]} 23. bxc4 {[%clk 0:01:34.3]} 23... Nf8
{[%clk 0:01:49]} 24. Rg1 {[%clk 0:01:26.8]} 24... Bf6 {[%clk 0:01:37.9]} 25. Qf1
{[%clk 0:01:15.6]} 25... Ra7 {[%clk 0:01:17.5]} 26. Bxa7 {[%clk 0:01:07.5]}
26... Qxa7 {[%clk 0:01:18.4]} 27. c5 {[%clk 0:01:03.2]} 27... dxc5 {[%clk
0:01:15.2]} 28. Nxf8 {[%clk 0:01:03.2]} 28... Rxf8 {[%clk 0:01:12.7]} 29. d6
{[%clk 0:01:02.9]} 29... Rd8 {[%clk 0:00:51.9]} 30. Bd5+ {[%clk 0:01:01.7]}
30... Kf8 {[%clk 0:00:52.1]} 31. Qh3 {[%clk 0:00:51.7]} 31... Rxd6 {[%clk
0:00:51.1]} 32. Qc8+ {[%clk 0:00:51.8]} 32... Rd8 {[%clk 0:00:49.9]} 33. Qe6
{[%clk 0:00:51.7]} 33... Qd7 {[%clk 0:00:35.9]} 34. Rxc5 {[%clk 0:00:39.8]}
34... Qxe6 {[%clk 0:00:33.1]} 35. Bxe6 {[%clk 0:00:40.7]} 35... Rd2 {[%clk
0:00:30.3]} 36. Bb3 {[%clk 0:00:27]} 36... Nf3 {[%clk 0:00:21.1]} 37. Rg2 {[%clk
0:00:26.4]} 37... Rxg2 {[%clk 0:00:18.4]} 38. Kxg2 {[%clk 0:00:27.3]} 38... Nd4
{[%clk 0:00:18.7]} 39. Ra5 {[%clk 0:00:23.7]} 39... Ke7 {[%clk 0:00:15.6]} 40.
Rxa6 {[%clk 0:00:23.7]} 40... Nf5 {[%clk 0:00:13.6]} 41. a4 {[%clk 0:00:20.4]}
41... Be5 {[%clk 0:00:14.1]} 42. Re6+ {[%clk 0:00:19.4]} 42... Kd7 {[%clk
0:00:13.6]} 43. Rxe5 {[%clk 0:00:20.3]} 1-0

[Event "Early-Titled-Tuesday-Blitz-August-29-2023"]
[Site "Chess.com"]
[Date "2023.08.29"]
[Round "11"]
[White "Blackwhite017"]
[Black "RAMBO1STBLOOD"]
[Result "1/2-1/2"]
[WhiteElo "2003"]
[BlackElo "2243"]
[TimeControl "180+1"]
[EndTime "10:03:35 PDT"]
[Termination "Game drawn by repetition"]

1. e4 {[%clk 0:02:59.7]} 1... c5 {[%clk 0:02:59.2]} 2. Nf3 {[%clk 0:02:58.8]}
2... Nc6 {[%clk 0:02:59.8]} 3. d3 {[%clk 0:02:59]} 3... g6 {[%clk 0:02:59.5]} 4.
Nbd2 {[%clk 0:02:59.6]} 4... Bg7 {[%clk 0:03:00]} 5. g3 {[%clk 0:03:00.1]} 5...
e6 {[%clk 0:02:59.6]} 6. Bg2 {[%clk 0:03:00.8]} 6... Nge7 {[%clk 0:03:00.1]} 7.
O-O {[%clk 0:03:01.3]} 7... O-O {[%clk 0:02:59.9]} 8. Re1 {[%clk 0:02:59.5]}
8... d6 {[%clk 0:02:59.7]} 9. c3 {[%clk 0:02:54.4]} 9... b5 {[%clk 0:02:59.1]}
10. h4 {[%clk 0:02:49]} 10... Rb8 {[%clk 0:02:58.8]} 11. Nf1 {[%clk 0:02:48.9]}
11... b4 {[%clk 0:02:58.6]} 12. c4 {[%clk 0:02:49]} 12... Nd4 {[%clk 0:02:41.1]}
13. N1h2 {[%clk 0:02:36.3]} 13... Nec6 {[%clk 0:02:38.2]} 14. Nxd4 {[%clk
0:02:30.9]} 14... Nxd4 {[%clk 0:02:37]} 15. Nf3 {[%clk 0:02:31.5]} 15... Bb7
{[%clk 0:02:18.7]} 16. Nxd4 {[%clk 0:02:26.5]} 16... Bxd4 {[%clk 0:02:18]} 17.
Rb1 {[%clk 0:02:12.1]} 17... Qa5 {[%clk 0:02:13.1]} 18. a3 {[%clk 0:01:03.9]}
18... bxa3 {[%clk 0:02:09.2]} 19. Bd2 {[%clk 0:01:03.2]} 19... Qa6 {[%clk
0:02:03]} 20. bxa3 {[%clk 0:00:54.2]} 20... Bc6 {[%clk 0:01:55.9]} 21. Qg4
{[%clk 0:00:48.8]} 21... Rxb1 {[%clk 0:01:47.2]} 22. Rxb1 {[%clk 0:00:49.7]}
22... Qxa3 {[%clk 0:01:47.1]} 23. Bf1 {[%clk 0:00:38.1]} 23... Qa2 {[%clk
0:01:45.9]} 24. Rd1 {[%clk 0:00:37.5]} 24... Ba4 {[%clk 0:01:45.7]} 25. h5
{[%clk 0:00:35.1]} 25... Bxd1 {[%clk 0:01:44.8]} 26. Qxd1 {[%clk 0:00:36]} 26...
Rb8 {[%clk 0:01:42.4]} 27. h6 {[%clk 0:00:35.2]} 27... Rb2 {[%clk 0:01:37.2]}
28. Be3 {[%clk 0:00:34]} 28... Rxf2 {[%clk 0:01:25]} 29. Bxd4 {[%clk 0:00:18.8]}
29... cxd4 {[%clk 0:01:24.8]} 30. Qg4 {[%clk 0:00:16.5]} 30... Qd2 {[%clk
0:01:15.7]} 31. Qh4 {[%clk 0:00:15.4]} 31... f6 {[%clk 0:01:14.6]} 32. e5 {[%clk
0:00:13.9]} 32... dxe5 {[%clk 0:01:13.2]} 33. Qe4 {[%clk 0:00:14]} 33... Rxf1+
{[%clk 0:00:50.5]} 34. Kxf1 {[%clk 0:00:14.9]} 34... Qc1+ {[%clk 0:00:44.6]} 35.
Kg2 {[%clk 0:00:13.2]} 35... Qxh6 {[%clk 0:00:41.4]} 36. Qa8+ {[%clk 0:00:13.1]}
36... Qf8 {[%clk 0:00:41]} 37. Qxa7 {[%clk 0:00:13]} 37... Qf7 {[%clk
0:00:39.4]} 38. Qb8+ {[%clk 0:00:12.6]} 38... Kg7 {[%clk 0:00:39.2]} 39. c5
{[%clk 0:00:13.1]} 39... Qd7 {[%clk 0:00:38.2]} 40. Qb6 {[%clk 0:00:12]} 40...
Qd5+ {[%clk 0:00:37]} 41. Kh2 {[%clk 0:00:12.2]} 41... e4 {[%clk 0:00:36.1]} 42.
c6 {[%clk 0:00:11]} 42... e3 {[%clk 0:00:32.9]} 43. c7 {[%clk 0:00:09.2]} 43...
Qh5+ {[%clk 0:00:30.5]} 44. Kg2 {[%clk 0:00:08]} 44... Qe2+ {[%clk 0:00:30.1]}
45. Kh3 {[%clk 0:00:08.3]} 45... Qh5+ {[%clk 0:00:28.2]} 46. Kg2 {[%clk
0:00:08.3]} 46... Qe2+ {[%clk 0:00:27.5]} 47. Kh3 {[%clk 0:00:08.8]} 47... Qh5+
{[%clk 0:00:27.1]} 48. Kg2 {[%clk 0:00:09.3]} 1/2-1/2